fUST/lending_fUST_20250522
["ID","MTS","AMOUNT","RATE_DAILY","PERIOD"]
[361977491,1747917048999,-160.0,0.00023959,3]
[361977492,1747917049009,-719.0,0.00023959,3]
[361977493,1747917049019,-151.0,0.00023959,3]
[361977494,1747917049029,-160.0,0.00023959,3]
[361977495,1747917049038,-719.0,0.00023959,3]
[361977496,1747917049048,-151.0,0.00023959,3]
[361977497,1747917049057,-160.0,0.00023959,3]
[361977498,1747917049067,-719.0,0.00023959,3]
[361977499,1747917049078,-151.0,0.00023959,3]
[361977500,1747917049089,-160.0,0.00023959,3]
[361977501,1747917049099,-719.0,0.00023959,3]
[361977502,1747917049109,-151.0,0.00023959,3]
[361977503,1747917049121,-163.92424099,0.00023959,3]
[361977504,1747917049132,-719.0,0.00023959,3]
[361977505,1747917049142,-151.0,0.00023959,3]
[361977506,1747917049152,-151.0,0.00023959,3]
[361977507,1747917049163,-151.0,0.00023959,3]
[361977508,1747917049175,-719.0,0.00023959,3]
[361977509,1747917049185,-719.0,0.00023959,3]
[361977510,1747917049195,-719.0,0.00023959,3]
[361977511,1747917049204,-151.0,0.00023959,3]
[361977512,1747917049213,-719.0,0.00023959,3]
[361977513,1747917049223,-151.0,0.00023959,3]
[361977514,1747917049233,-151.0,0.00023959,3]
[361977515,1747917049243,-719.0,0.00023959,3]
[361977516,1747917049252,-151.0,0.00023959,3]
[361977517,1747917049263,-719.0,0.00023959,3]
[361977518,1747917049273,-151.0,0.00023959,3]
[361977519,1747917049284,-719.0,0.00023959,3]
[361977520,1747917049294,-151.0,0.00023959,3]
[361977521,1747917049303,-719.0,0.00023959,3]
[361977522,1747917049313,-151.0,0.00023959,3]
[361977523,1747917049323,-719.0,0.00023959,3]
[361977524,1747917049332,-151.0,0.00023959,3]
[361977525,1747917049342,-719.0,0.00023959,3]
[361977526,1747917049352,-218.07859057,0.00023959,3]
[361977527,1747917049362,-719.0,0.00023959,3]
[361977528,1747917049374,-719.0,0.00023959,3]
[361977529,1747917049383,-719.0,0.00023959,3]
[361977530,1747917049393,-315.0,0.00023959,3]
[361977531,1747917049404,-719.0,0.00023959,3]
[361977532,1747917049413,-315.0,0.00023959,3]
[361977533,1747917049423,-719.0,0.00023959,3]
[361977534,1747917049434,-719.0,0.00023959,3]
[361977535,1747917049444,-315.0,0.00023959,3]
[361977536,1747917049453,-719.0,0.00023959,3]
[361977537,1747917049463,-315.0,0.00023959,3]
[361977538,1747917049473,-719.0,0.00023959,3]
[361977539,1747917049483,-315.0,0.00023959,3]
[361977540,1747917049493,-719.0,0.00023959,3]
[361977541,1747917049503,-315.0,0.00023959,3]
[361977542,1747917049512,-719.0,0.00023959,3]
[361977543,1747917049522,-315.0,0.00023959,3]
[361977544,1747917049531,-269.4627899,0.00023959,3]
[361977545,1747917049541,-315.0,0.00023959,3]
[361977546,1747917049551,-315.0,0.00023959,3]
[361977547,1747917049561,-315.0,0.00023959,3]
[361977548,1747917049574,-315.0,0.00023959,3]
[361977549,1747917049584,-315.0,0.00023959,3]
[361977550,1747917049594,-315.0,0.00023959,3]
[361977551,1747917049604,-315.0,0.00023959,3]
[361977552,1747917049614,-315.0,0.00023959,3]
[361977553,1747917049625,-315.0,0.00023959,3]
[361977554,1747917049635,-315.0,0.00023959,3]
[361977555,1747917049645,-315.0,0.00023959,3]
[361977556,1747917049655,-315.0,0.00023959,3]
[361977557,1747917049664,-315.0,0.00023959,3]
[361977558,1747917049674,-315.0,0.00023959,3]
[361977559,1747917049684,-315.0,0.00023959,3]
[361977560,1747917049693,-315.0,0.00023959,3]
[361977561,1747917049703,-315.0,0.00023959,3]
[361977562,1747917049713,-315.0,0.00023959,3]
[361977563,1747917049723,-315.0,0.00023959,3]
[361977564,1747917049807,-315.0,0.00023959,3]
[361977565,1747917049825,-315.0,0.00023959,3]
[361977566,1747917049835,-315.0,0.00023959,3]
[361977567,1747917049844,-315.0,0.00023959,3]
[361977568,1747917049854,-315.0,0.00023959,3]
[361977569,1747917049864,-315.0,0.00023959,3]
[361977570,1747917049874,-315.0,0.00023959,3]
[361977571,1747917049884,-315.0,0.00023959,3]
[361977572,1747917049893,-315.0,0.00023959,3]
[361977573,1747917049902,-315.0,0.00023959,3]
[361977574,1747917049911,-315.0,0.00023959,3]
[361977575,1747917049921,-315.0,0.00023959,3]
[361977576,1747917049930,-315.0,0.00023959,3]
[361977577,1747917049939,-315.0,0.00023959,3]
[361977578,1747917049948,-315.0,0.00023959,3]
[361977579,1747917049957,-315.0,0.00023959,3]
[361977580,1747917049967,-315.0,0.00023959,3]
[361977581,1747917049976,-315.0,0.00023959,3]
[361977582,1747917049986,-315.0,0.00023959,3]
[361977583,1747917049995,-315.0,0.00023959,3]
[361977584,1747917050005,-315.0,0.00023959,3]
[361977585,1747917050014,-315.0,0.00023959,3]
[361977586,1747917050023,-315.0,0.00023959,3]
[361977587,1747917050033,-315.0,0.00023959,3]
[361977588,1747917050042,-315.0,0.00023959,3]
[361977589,1747917050052,-315.0,0.00023959,3]
[361977590,1747917050062,-315.0,0.00023959,3]
[361977591,1747917050071,-315.0,0.00023959,3]
[361977592,1747917050085,-315.0,0.00023959,3]
[361977593,1747917050094,-315.0,0.00023959,3]
[361977594,1747917050103,-315.0,0.00023959,3]
[361977595,1747917050113,-315.0,0.00023959,3]
[361977596,1747917050126,-315.0,0.00023959,3]
[361977597,1747917050135,-315.0,0.00023959,3]
[361977598,1747917050145,-315.0,0.00023959,3]
[361977599,1747917050155,-315.0,0.00023959,3]
[361977600,1747917050165,-315.0,0.00023959,3]
[361977601,1747917050176,-315.0,0.00023959,3]
[361977602,1747917050186,-315.0,0.00023959,3]
[361977603,1747917050196,-315.0,0.00023959,3]
[361977604,1747917050206,-315.0,0.00023959,3]
[361977605,1747917050216,-315.0,0.00023959,3]
[361977606,1747917050225,-315.0,0.00023959,3]
[361977607,1747917050235,-315.0,0.00023959,3]
[361977608,1747917050245,-315.0,0.00023959,3]
[361977609,1747917050254,-315.0,0.00023959,3]
[361977610,1747917050265,-315.0,0.00023959,3]
[361977611,1747917050274,-315.0,0.00023959,3]
[361977612,1747917050284,-315.0,0.00023959,3]
[361977613,1747917050293,-315.0,0.00023959,3]
[361977614,1747917050304,-315.0,0.00023959,3]
[361977615,1747917050313,-315.0,0.00023959,3]
[361977616,1747917050323,-315.0,0.00023959,3]
[361977617,1747917050332,-315.0,0.00023959,3]
[361977618,1747917050342,-315.0,0.00023959,3]
[361977619,1747917050352,-315.0,0.00023959,3]
[361977620,1747917050361,-315.0,0.00023959,3]
[361977621,1747917050373,-315.0,0.00023959,3]
[361977622,1747917050382,-321.0,0.00023959,3]
[361977623,1747917050392,-212.4501065,0.00023959,7]
[361977624,1747917050402,-151.0,0.00023959,7]
[361977625,1747917050411,-151.0,0.00023959,7]
[361977626,1747917050420,-151.0,0.00023959,7]
[361977627,1747917050430,-151.0,0.00023959,7]
[361977628,1747917050439,-803.794726,0.00023959,7]
[361977629,1747917050449,-231.655327,0.00023959,7]
[361977630,1747917050459,-803.794726,0.00023959,7]
[361977631,1747917050468,-960.0,0.00023968,2]
[361977632,1747917050477,-404.0,0.00023968,2]
[361977633,1747917050487,-707.0,0.00023968,2]
[361977634,1747917050496,-2239.0,0.00023968,2]
[361977635,1747917050506,-500.0,0.00023973,2]
[361977636,1747917050515,-500.0,0.00023973,2]
[361977637,1747917050524,-500.0,0.00023973,2]
[361977638,1747917050534,-500.0,0.00023973,2]
[361977639,1747917050543,-500.0,0.00023984,2]
[361977640,1747917050552,-17671.50729585,0.00024,2]
[361977641,1747917050561,-9322.44724336,0.00024,3]
[361977642,1747917050571,-202733.06122322,0.00024,30]
[361977643,1747917050764,-7754.19595751,0.00024,30]
[361977644,1747917051124,-430.0,0.00021917,2]
[361977645,1747917051235,-554.1,0.00021917,2]
[361977646,1747917051245,-430.0,0.00021917,2]
[361977647,1747917051255,-542.17451138,0.00022191,2]
[361977648,1747917051266,-151.0,0.00023561,7]
[361977649,1747917051275,-231.655327,0.00023959,7]
[361977650,1747917051285,-12538.50346803,0.00024,30]
[361977653,1747917425736,169.828496,0.00013699,2]
[361977785,1747918232801,-4270.9567042,0.00018428,2]
[361977787,1747918232811,-187.0,0.00018795,3]
[361977789,1747918232822,-264.37142109,0.000189,2]
[361977791,1747918232832,-169.828496,0.00020187,2]
[361977793,1747918232842,-300.0,0.00020894,2]
[361977795,1747918232852,-300.0,0.00020895,2]
[361977797,1747918232861,-300.0,0.00020895,2]
[361977799,1747918232871,-1200.0,0.00020895,2]
[361977801,1747918232880,-17834.88061616,0.00020896,2]
[361977823,1747918238711,-300.0,0.00020894,2]
[361977824,1747918238722,-7065.11938384,0.00020896,2]
[361977825,1747918238732,-173.825313,0.00020916,2]
[361977826,1747918238742,-299.965003,0.00020916,2]
[361977827,1747918238751,-200.53985225,0.00021817,2]
[361977828,1747918238761,-1229.56978734,0.000219,6]
[361977829,1747918238772,-430.0,0.00021917,2]
[361977830,1747918238781,-430.0,0.00021917,2]
[361977831,1747918238791,-430.0,0.00021917,2]
[361977832,1747918238802,-430.0,0.00021917,2]
[361977833,1747918238811,-430.0,0.00021917,2]
[361977834,1747918238821,-430.0,0.00021917,2]
[361977835,1747918238831,-749.8,0.00021917,2]
[361977836,1747918238841,-430.0,0.00021917,2]
[361977837,1747918238851,-475.78,0.00021917,2]
[361977838,1747918238860,-430.0,0.00021917,2]
[361977839,1747918238870,-851.55,0.00021917,2]
[361977840,1747918238880,-430.0,0.00021917,2]
[361977841,1747918238891,-430.0,0.00021917,2]
[361977842,1747918238901,-430.0,0.00021917,2]
[361977843,1747918238910,-430.0,0.00021917,2]
[361977844,1747918238920,-430.0,0.00021917,2]
[361977845,1747918238930,-646.89,0.00021917,2]
[361977846,1747918238940,-430.0,0.00021917,2]
[361977847,1747918238949,-450.0,0.00021917,2]
[361977848,1747918238959,-430.0,0.00021917,2]
[361977849,1747918238969,-430.0,0.00021917,2]
[361977850,1747918238979,-430.0,0.00021917,2]
[361977851,1747918238989,-430.0,0.00021917,2]
[361977852,1747918238998,-430.0,0.00021917,2]
[361977853,1747918239008,-430.0,0.00021917,2]
[361977854,1747918239018,-430.0,0.00021917,2]
[361977855,1747918239028,-774.29,0.00021917,2]
[361977856,1747918239038,-707.07,0.00021917,2]
[361977857,1747918239048,-430.0,0.00021917,2]
[361977858,1747918239057,-400.0,0.00021917,2]
[361977859,1747918239067,-430.0,0.00021917,2]
[361977860,1747918239077,-430.0,0.00021917,2]
[361977861,1747918239086,-915.73,0.00021917,2]
[361977862,1747918239096,-736.36,0.00021917,2]
[361977863,1747918239106,-237.08283724,0.00021917,2]
[361977864,1747918239116,-1047.1,0.00021917,2]
[361977865,1747918239125,-430.0,0.00021917,2]
[361977866,1747918239135,-1085.49,0.00021917,2]
[361977867,1747918239144,-430.0,0.00021917,2]
[361977868,1747918239154,-430.0,0.00021917,2]
[361977869,1747918239319,-430.0,0.00021917,2]
[361977870,1747918239330,-524.54,0.00021917,2]
[361977871,1747918239340,-430.0,0.00021917,2]
[361977872,1747918239350,-4510.3,0.00021917,2]
[361977873,1747918239360,-430.0,0.00021917,2]
[361977874,1747918239369,-430.0,0.00021917,2]
[361977875,1747918239378,-444.27,0.00021917,2]
[361977876,1747918239388,-430.0,0.00021917,2]
[361977877,1747918239398,-430.0,0.00021917,2]
[361977878,1747918239408,-430.0,0.00021917,2]
[361977879,1747918239419,-430.0,0.00021917,2]
[361977880,1747918239428,-430.0,0.00021917,2]
[361977881,1747918239437,-1387.7,0.00021917,2]
[361977882,1747918239448,-399.0,0.00021917,2]
[361977883,1747918239458,-430.0,0.00021917,2]
[361977884,1747918239467,-430.0,0.00021917,2]
[361977885,1747918239477,-430.0,0.00021917,2]
[361977886,1747918239490,-430.0,0.00021917,2]
[361977887,1747918239500,-647.8,0.00021917,2]
[361977888,1747918239509,-416.29242212,0.00021917,2]
[361977889,1747918239519,-430.0,0.00021917,2]
[361977890,1747918239530,-673.08,0.00021917,2]
[361977891,1747918239540,-495.16,0.00021917,2]
[361977892,1747918239549,-466.95,0.00021917,2]
[361977893,1747918239559,-663.11,0.00021917,2]
[361977894,1747918239569,-430.0,0.00021917,2]
[361977895,1747918239579,-1512.93,0.00021917,2]
[361977896,1747918239589,-430.0,0.00021917,2]
[361977897,1747918239598,-430.0,0.00021917,2]
[361977898,1747918239608,-430.0,0.00021917,2]
[361977899,1747918239619,-1589.43,0.00021917,2]
[361977900,1747918239630,-1351.09,0.00021917,2]
[361977901,1747918239641,-430.0,0.00021917,2]
[361977902,1747918239651,-576.0,0.00021917,2]
[361977903,1747918239661,-430.0,0.00021917,2]
[361977904,1747918239671,-612.07,0.00021917,2]
[361977905,1747918239681,-2985.15,0.00021917,2]
[361977906,1747918239690,-430.0,0.00021917,2]
[361977907,1747918239700,-529.38,0.00021917,2]
[361977908,1747918239709,-635.82,0.00021917,2]
[361977909,1747918239719,-1388.75,0.00021917,2]
[361977910,1747918239729,-782.94,0.00021917,2]
[361977911,1747918239738,-914.59,0.00021917,2]
[361977912,1747918239748,-1024.39,0.00021917,2]
[361977913,1747918239757,-430.0,0.00021917,2]
[361977914,1747918239767,-430.0,0.00021917,2]
[361977915,1747918239777,-430.0,0.00021917,2]
[361977916,1747918239787,-430.0,0.00021917,2]
[361977917,1747918239797,-4221.05,0.00021917,2]
[361977918,1747918239807,-430.0,0.00021917,2]
[361977919,1747918239817,-518.16,0.00021917,2]
[361977920,1747918239827,-508.14,0.00021917,2]
[361977921,1747918239837,-617.61,0.00021917,2]
[361977922,1747918239847,-1360.12,0.00021917,2]
[361977923,1747918239857,-657.51,0.00021917,2]
[361977924,1747918239867,-450.0,0.00021917,2]
[361977925,1747918239877,-1975.52,0.00021917,2]
[361977926,1747918239888,-681.99,0.00021917,2]
[361977927,1747918239897,-857.01,0.00021917,2]
[361977928,1747918239907,-1447.26,0.00021917,2]
[361977929,1747918239916,-450.0,0.00021917,2]
[361977930,1747918239926,-430.0,0.00021917,2]
[361977931,1747918239935,-430.0,0.00021917,2]
[361977932,1747918239945,-561.81,0.00021917,2]
[361977933,1747918239955,-431.64,0.00021917,2]
[361977934,1747918239965,-430.0,0.00021917,2]
[361977935,1747918239975,-844.57,0.00021917,2]
[361977936,1747918239984,-430.0,0.00021917,2]
[361977937,1747918239994,-1225.07,0.00021917,2]
[361977938,1747918240003,-430.0,0.00021917,2]
[361977939,1747918240012,-430.0,0.00021917,2]
[361977940,1747918240022,-500.54,0.00021917,2]
[361977941,1747918240031,-430.0,0.00021917,2]
[361977942,1747918240041,-273.083,0.00021932,2]
[361977943,1747918240051,-1229.56978712,0.00022003,6]
[361977944,1747918240062,-207.4,0.0002206,2]
[361977945,1747918240071,-1229.56978712,0.00022107,6]
[361977946,1747918240081,-155.0,0.0002219,2]
[361977947,1747918240091,-430.0,0.00022191,2]
[361977948,1747918240101,-430.0,0.00022191,2]
[361977949,1747918240110,-430.0,0.00022191,2]
[361977950,1747918240120,-430.0,0.00022191,2]
[361977951,1747918240130,-749.8,0.00022191,2]
[361977952,1747918240139,-475.78,0.00022191,2]
[361977953,1747918240149,-430.0,0.00022191,2]
[361977954,1747918240159,-851.55,0.00022191,2]
[361977956,1747918240168,-430.0,0.00022191,2]
[361977957,1747918240178,-430.0,0.00022191,2]
[361977958,1747918240187,-646.89,0.00022191,2]
[361977959,1747918240196,-430.0,0.00022191,2]
[361977960,1747918240206,-430.0,0.00022191,2]
[361977961,1747918240217,-430.0,0.00022191,2]
[361977962,1747918240227,-430.0,0.00022191,2]
[361977963,1747918240236,-774.29,0.00022191,2]
[361977964,1747918240245,-707.07,0.00022191,2]
[361977965,1747918240255,-430.0,0.00022191,2]
[361977966,1747918240265,-430.0,0.00022191,2]
[361977967,1747918240275,-430.0,0.00022191,2]
[361977968,1747918240284,-915.73,0.00022191,2]
[361977969,1747918240294,-736.36,0.00022191,2]
[361977970,1747918240303,-1047.1,0.00022191,2]
[361977971,1747918240313,-1085.49,0.00022191,2]
[361977972,1747918240322,-430.0,0.00022191,2]
[361977973,1747918240332,-524.54,0.00022191,2]
[361977974,1747918240342,-430.0,0.00022191,2]
[361977975,1747918240351,-4510.3,0.00022191,2]
[361977976,1747918240360,-430.0,0.00022191,2]
[361977977,1747918240369,-444.27,0.00022191,2]
[361977978,1747918240379,-430.0,0.00022191,2]
[361977979,1747918240390,-430.0,0.00022191,2]
[361977980,1747918240399,-430.0,0.00022191,2]
[361977981,1747918240409,-430.0,0.00022191,2]
[361977982,1747918240418,-1387.7,0.00022191,2]
[361977983,1747918240428,-430.0,0.00022191,2]
[361977984,1747918240437,-430.0,0.00022191,2]
[361977985,1747918240446,-430.0,0.00022191,2]
[361977986,1747918240456,-647.8,0.00022191,2]
[361977987,1747918240466,-345.63347429,0.00022191,2]
[361977988,1747918240475,-673.08,0.00022191,2]
[361977989,1747918240488,-495.16,0.00022191,2]
[361977990,1747918240497,-466.95,0.00022191,2]
[361977991,1747918240507,-663.11,0.00022191,2]
[361977992,1747918240516,-430.0,0.00022191,2]
[361977993,1747918240527,-1512.93,0.00022191,2]
[361977994,1747918240536,-430.0,0.00022191,2]
[361977995,1747918240545,-430.0,0.00022191,2]
[361977996,1747918240554,-1589.43,0.00022191,2]
[361977997,1747918240564,-1351.09,0.00022191,2]
[361977998,1747918240575,-430.0,0.00022191,2]
[361977999,1747918240584,-576.0,0.00022191,2]
[361978000,1747918240594,-430.0,0.00022191,2]
[361978001,1747918240603,-612.07,0.00022191,2]
[361978002,1747918240613,-2985.15,0.00022191,2]
[361978003,1747918240622,-430.0,0.00022191,2]
[361978004,1747918240632,-529.38,0.00022191,2]
[361978005,1747918240643,-635.82,0.00022191,2]
[361978006,1747918240653,-1388.75,0.00022191,2]
[361978007,1747918240662,-782.94,0.00022191,2]
[361978008,1747918240672,-914.59,0.00022191,2]
[361978009,1747918240682,-1024.39,0.00022191,2]
[361978010,1747918240691,-430.0,0.00022191,2]
[361978012,1747918240701,-430.0,0.00022191,2]
[361978013,1747918240711,-430.0,0.00022191,2]
[361978014,1747918240720,-4221.05,0.00022191,2]
[361978015,1747918240730,-430.0,0.00022191,2]
[361978016,1747918240740,-518.16,0.00022191,2]
[361978017,1747918240750,-508.14,0.00022191,2]
[361978018,1747918240760,-617.61,0.00022191,2]
[361978019,1747918240770,-1360.12,0.00022191,2]
[361978020,1747918240780,-657.51,0.00022191,2]
[361978021,1747918240789,-1975.52,0.00022191,2]
[361978022,1747918240798,-681.99,0.00022191,2]
[361978023,1747918240808,-857.01,0.00022191,2]
[361978024,1747918240818,-1447.26,0.00022191,2]
[361978025,1747918240828,-430.0,0.00022191,2]
[361978026,1747918240837,-561.81,0.00022191,2]
[361978027,1747918240847,-431.64,0.00022191,2]
[361978028,1747918240856,-430.0,0.00022191,2]
[361978029,1747918240865,-844.57,0.00022191,2]
[361978031,1747918240875,-430.0,0.00022191,2]
[361978033,1747918240885,-1225.07,0.00022191,2]
[361978035,1747918240899,-430.0,0.00022191,2]
[361978037,1747918240909,-430.0,0.00022191,2]
[361978039,1747918240919,-500.54,0.00022191,2]
[361978041,1747918240929,-430.0,0.00022191,2]
[361978043,1747918240939,-1229.56978712,0.0002221,6]
[361978045,1747918240949,-160.0,0.00022313,2]
[361978046,1747918240959,-160.0,0.00022313,2]
[361978047,1747918240969,-160.0,0.00022313,2]
[361978048,1747918240979,-894.64583333,0.00022313,2]
[361978049,1747918240989,-160.0,0.00022313,2]
[361978050,1747918240999,-12645.25887003,0.00022313,2]
[361978051,1747918241009,-160.0,0.00022313,2]
[361978052,1747918241018,-212.4501065,0.00022313,2]
[361978053,1747918241028,-160.0,0.00022313,2]
[361978054,1747918241037,-160.0,0.00022313,2]
[361978055,1747918241047,-160.0,0.00022313,2]
[361978056,1747918241056,-422.78357425,0.00022313,2]
[361978057,1747918241066,-1229.56978712,0.00022314,7]
[361978058,1747918241076,-12618.98773563,0.00022365,3]
[361978059,1747918241087,-212.4501065,0.00022365,3]
[361978060,1747918241097,-1229.56978712,0.00022417,7]
[361978061,1747918241106,-500.0,0.0002242,2]
[361978062,1747918241116,-995.0,0.0002244,3]
[361978063,1747918241125,-430.0,0.00022465,2]
[361978064,1747918241135,-430.0,0.00022465,2]
[361978065,1747918241147,-430.0,0.00022465,2]
[361978066,1747918241156,-355.80059432,0.00022465,2]
[361978067,1747918241166,-749.8,0.00022465,2]
[361978068,1747918241176,-475.78,0.00022465,2]
[361978069,1747918241186,-430.0,0.00022465,2]
[361978070,1747918241196,-851.55,0.00022465,2]
[361978071,1747918241207,-430.0,0.00022465,2]
[361978072,1747918241217,-430.0,0.00022465,2]
[361978073,1747918241227,-646.89,0.00022465,2]
[361978074,1747918241236,-430.0,0.00022465,2]
[361978075,1747918241246,-430.0,0.00022465,2]
[361978076,1747918241255,-430.0,0.00022465,2]
[361978077,1747918241266,-430.0,0.00022465,2]
[361978078,1747918241275,-774.29,0.00022465,2]
[361978079,1747918241284,-707.07,0.00022465,2]
[361978080,1747918241295,-430.0,0.00022465,2]
[361978081,1747918241306,-430.0,0.00022465,2]
[361978082,1747918241315,-430.0,0.00022465,2]
[361978083,1747918241324,-915.73,0.00022465,2]
[361978084,1747918241334,-736.36,0.00022465,2]
[361978085,1747918241344,-1047.1,0.00022465,2]
[361978086,1747918241353,-1085.49,0.00022465,2]
[361978087,1747918241362,-430.0,0.00022465,2]
[361978088,1747918241373,-524.54,0.00022465,2]
[361978089,1747918241382,-430.0,0.00022465,2]
[361978090,1747918241393,-4510.3,0.00022465,2]
[361978091,1747918241402,-430.0,0.00022465,2]
[361978092,1747918241412,-444.27,0.00022465,2]
[361978093,1747918241421,-430.0,0.00022465,2]
[361978094,1747918241431,-430.0,0.00022465,2]
[361978095,1747918241440,-430.0,0.00022465,2]
[361978096,1747918241450,-430.0,0.00022465,2]
[361978097,1747918241461,-1387.7,0.00022465,2]
[361978098,1747918241471,-430.0,0.00022465,2]
[361978099,1747918241482,-430.0,0.00022465,2]
[361978100,1747918241492,-430.0,0.00022465,2]
[361978101,1747918241502,-647.8,0.00022465,2]
[361978102,1747918241512,-673.08,0.00022465,2]
[361978103,1747918241523,-495.16,0.00022465,2]
[361978104,1747918241533,-466.95,0.00022465,2]
[361978105,1747918241543,-663.11,0.00022465,2]
[361978106,1747918241553,-430.0,0.00022465,2]
[361978107,1747918241565,-1512.93,0.00022465,2]
[361978108,1747918241574,-430.0,0.00022465,2]
[361978109,1747918241584,-430.0,0.00022465,2]
[361978110,1747918241594,-1589.43,0.00022465,2]
[361978111,1747918241603,-1351.09,0.00022465,2]
[361978112,1747918241614,-430.0,0.00022465,2]
[361978113,1747918241624,-576.0,0.00022465,2]
[361978114,1747918241634,-430.0,0.00022465,2]
[361978115,1747918241644,-612.07,0.00022465,2]
[361978116,1747918241655,-2985.15,0.00022465,2]
[361978117,1747918241664,-430.0,0.00022465,2]
[361978118,1747918241674,-529.38,0.00022465,2]
[361978119,1747918241683,-635.82,0.00022465,2]
[361978120,1747918241694,-1388.75,0.00022465,2]
[361978121,1747918241802,-782.94,0.00022465,2]
[361978122,1747918241828,-914.59,0.00022465,2]
[361978123,1747918241838,-1024.39,0.00022465,2]
[361978124,1747918241848,-328.2822375,0.00022465,2]
[361978125,1747918241858,-430.0,0.00022465,2]
[361978126,1747918241868,-430.0,0.00022465,2]
[361978127,1747918241877,-4221.05,0.00022465,2]
[361978128,1747918241887,-518.16,0.00022465,2]
[361978129,1747918241897,-508.14,0.00022465,2]
[361978130,1747918241907,-617.61,0.00022465,2]
[361978131,1747918241917,-1360.12,0.00022465,2]
[361978132,1747918241927,-657.51,0.00022465,2]
[361978133,1747918241937,-1975.52,0.00022465,2]
[361978134,1747918241946,-681.99,0.00022465,2]
[361978135,1747918241955,-857.01,0.00022465,2]
[361978136,1747918241965,-1447.26,0.00022465,2]
[361978137,1747918241975,-430.0,0.00022465,2]
[361978138,1747918241985,-561.81,0.00022465,2]
[361978139,1747918241995,-431.64,0.00022465,2]
[361978140,1747918242004,-430.0,0.00022465,2]
[361978141,1747918242014,-844.57,0.00022465,2]
[361978142,1747918242024,-430.0,0.00022465,2]
[361978143,1747918242033,-1225.07,0.00022465,2]
[361978144,1747918242043,-430.0,0.00022465,2]
[361978145,1747918242052,-430.0,0.00022465,2]
[361978146,1747918242062,-500.54,0.00022465,2]
[361978147,1747918242071,-430.0,0.00022465,2]
[361978148,1747918242081,-500.0,0.00022487,2]
[361978149,1747918242090,-1229.56978712,0.00022521,7]
[361978150,1747918242100,-500.0,0.0002256,2]
[361978151,1747918242110,-358.62764625,0.00022581,2]
[361978152,1747918242119,-420.63720867,0.00022593,2]
[361978153,1747918242128,-568.86813041,0.00022593,2]
[361978154,1747918242138,-1229.56978712,0.00022624,7]
[361978155,1747918242147,-700.0,0.00022639,2]
[361978156,1747918242156,-1687.66469012,0.00022639,2]
[361978157,1747918242166,-1229.56978712,0.00022728,7]
[361978158,1747918242175,-420.0,0.0002273,2]
[361978159,1747918242185,-420.0,0.00022731,2]
[361978160,1747918242194,-430.0,0.00022739,2]
[361978161,1747918242204,-430.0,0.00022739,2]
[361978162,1747918242213,-430.0,0.00022739,2]